[Event "November 21 Late 2023"]
[Site "https://www.chess.com"]
[Date "2023.11.21"]
[Round "5"]
[White "Osmak, Yuliia"]
[Black "BardArtem"]
[Result "1/2-1/2"]
[Board "59"]
[TimeControl "180+1"]
[WhiteFideId "14101602"]
[WhiteElo "2303"]
[BlackElo "2783"]
[WhiteTeam "UKR"]
[WhiteClock "0:00:05"]
[BlackClock "0:00:03"]

1. d4 {[%clk 0:02:57]}  d5 {[%clk 0:03:00]} 2. Bf4 {[%clk 0:02:57]}  Nf6 {[%clk 0:03:00]} 3. e3 {[%clk 0:02:57]}  c5 {[%clk 0:03:00]} 4. Nf3 {[%clk 0:02:55]}  Nc6 {[%clk 0:03:00]} 5. Nbd2 {[%clk 0:02:55]}  cxd4 {[%clk 0:02:58]} 6. exd4 {[%clk 0:02:55]}  Bf5 {[%clk 0:02:59]} 7. c3 {[%clk 0:02:48]}  e6 {[%clk 0:02:58]} 8. Be2 {[%clk 0:02:46]}  Bd6 {[%clk 0:02:55]} 9. Be3 {[%clk 0:02:38]}  O-O {[%clk 0:02:51]} 10. Nh4 {[%clk 0:02:34]}  Be4 {[%clk 0:02:41]} 11. O-O {[%clk 0:02:32]}  Rc8 {[%clk 0:02:26]} 12. g3 {[%clk 0:02:26]}  a6 {[%clk 0:02:13]} 13. f3 {[%clk 0:02:17]}  Bg6 {[%clk 0:02:11]} 14. Nxg6 {[%clk 0:02:17]}  hxg6 {[%clk 0:02:12]} 15. Bd3 {[%clk 0:02:16]}  e5 {[%clk 0:02:08]} 16. Nb3 {[%clk 0:02:04]}  Re8 {[%clk 0:02:06]} 17. Bg5 {[%clk 0:02:00]}  Qb6 {[%clk 0:02:02]} 18. Be3 {[%clk 0:01:42]}  exd4 {[%clk 0:01:55]} 19. Bxd4 {[%clk 0:01:41]}  Nxd4 {[%clk 0:01:52]} 20. cxd4 {[%clk 0:01:41]}  Nd7 {[%clk 0:01:46]} 21. Kg2 {[%clk 0:01:37]}  Nb8 {[%clk 0:01:45]} 22. Re1 {[%clk 0:01:33]}  Nc6 {[%clk 0:01:44]} 23. Rxe8+ {[%clk 0:01:29]}  Rxe8 {[%clk 0:01:45]} 24. Bf1 {[%clk 0:01:25]}  Ne7 {[%clk 0:01:39]} 25. Bd3 {[%clk 0:01:23]}  Nc6 {[%clk 0:01:36]} 26. Bc2 {[%clk 0:01:19]}  Be7 {[%clk 0:01:33]} 27. Qd2 {[%clk 0:01:16]}  Bf6 {[%clk 0:01:31]} 28. Rd1 {[%clk 0:01:12]}  Nxd4 {[%clk 0:01:29]} 29. Nxd4 {[%clk 0:01:08]}  Qxd4 {[%clk 0:01:30]} 30. Qxd4 {[%clk 0:01:05]}  Bxd4 {[%clk 0:01:31]} 31. Rxd4 {[%clk 0:00:43]}  Re2+ {[%clk 0:01:29]} 32. Kh3 {[%clk 0:00:44]}  Rxc2 {[%clk 0:01:30]} 33. Rxd5 {[%clk 0:00:40]}  Rxb2 {[%clk 0:01:29]} 34. Rd8+ {[%clk 0:00:40]}  Kh7 {[%clk 0:01:28]} 35. a4 {[%clk 0:00:37]}  b5 {[%clk 0:01:24]} 36. Rb8 {[%clk 0:00:30]}  Rb4 {[%clk 0:01:18]} 37. axb5 {[%clk 0:00:26]}  axb5 {[%clk 0:01:19]} 38. Rb7 {[%clk 0:00:22]}  f6 {[%clk 0:01:18]} 39. f4 {[%clk 0:00:21]}  Rb2 {[%clk 0:01:12]} 40. Kg4 {[%clk 0:00:20]}  b4 {[%clk 0:01:12]} 41. h4 {[%clk 0:00:17]}  b3 {[%clk 0:01:10]} 42. Rb8 {[%clk 0:00:15]}  Rb1 {[%clk 0:01:08]} 43. Kf3 {[%clk 0:00:14]}  Rb2 {[%clk 0:00:37]} 44. Kg4 {[%clk 0:00:14]}  Rb1 {[%clk 0:00:18]} 45. Kf3 {[%clk 0:00:14]}  g5 {[%clk 0:00:05]} 46. fxg5 {[%clk 0:00:10]}  fxg5 {[%clk 0:00:06]} 47. h5 {[%clk 0:00:10]}  Rb2 {[%clk 0:00:05]} 48. Kg4 {[%clk 0:00:10]}  Rb1 {[%clk 0:00:03]} 49. Kxg5 {[%clk 0:00:10]}  Rb2 {[%clk 0:00:02]} 50. g4 {[%clk 0:00:10]}  Rb1 {[%clk 0:00:02]} 51. Kf5 {[%clk 0:00:10]}  Rb2 {[%clk 0:00:01]} 52. g5 {[%clk 0:00:09]}  Rf2+ {[%clk 0:00:02]} 53. Ke4 {[%clk 0:00:09]}  Rg2 {[%clk 0:00:01]} 54. Kf4 {[%clk 0:00:08]}  Rf2+ {[%clk 0:00:02]} 55. Kg3 {[%clk 0:00:08]}  Rb2 {[%clk 0:00:02]} 56. Kh3 {[%clk 0:00:08]}  Rc2 {[%clk 0:00:01]} 57. Rxb3 {[%clk 0:00:06]}  Rc5 {[%clk 0:00:02]} 58. Kg4 {[%clk 0:00:06]}  Rc4+ {[%clk 0:00:03]} 59. Kg3 {[%clk 0:00:06]}  Rc5 {[%clk 0:00:03]} 60. Kh4 {[%clk 0:00:06]}  Rc4+ {[%clk 0:00:03]} 61. Kh3 {[%clk 0:00:05]}  Rc5 {[%clk 0:00:04]} 62. Rg3 {[%clk 0:00:04]}  Rc4 {[%clk 0:00:03]} 63. Rg4 {[%clk 0:00:04]}  Rc1 {[%clk 0:00:03]} 64. Ra4 {[%clk 0:00:03]}  Rh1+ {[%clk 0:00:02]} 65. Kg4 {[%clk 0:00:04]}  Rg1+ {[%clk 0:00:03]} 66. Kf5 {[%clk 0:00:04]}  Rf1+ {[%clk 0:00:03]} 67. Rf4 {[%clk 0:00:03]}  Ra1 {[%clk 0:00:03]} 68. Kg4 {[%clk 0:00:02]}  Rg1+ {[%clk 0:00:02]} 69. Kh4 {[%clk 0:00:02]}  Rh1+ {[%clk 0:00:03]} 70. Kg4 {[%clk 0:00:03]}  Rg1+ {[%clk 0:00:03]} 71. Kf5 {[%clk 0:00:03]}  Ra1 {[%clk 0:00:03]} 72. Rc4 {[%clk 0:00:03]}  Rf1+ {[%clk 0:00:03]} 73. Kg4 {[%clk 0:00:03]}  Rg1+ {[%clk 0:00:03]} 74. Kf4 {[%clk 0:00:03]}  Rf1+ {[%clk 0:00:04]} 75. Kg4 {[%clk 0:00:03]}  Rh1 {[%clk 0:00:03]} 76. Rc7 {[%clk 0:00:02]}  Rg1+ {[%clk 0:00:03]} 77. Kf5 {[%clk 0:00:02]}  Rf1+ {[%clk 0:00:04]} 78. Ke4 {[%clk 0:00:02]}  Re1+ {[%clk 0:00:03]} 79. Kf3 {[%clk 0:00:02]}  Rg1 {[%clk 0:00:03]} 80. Kf4 {[%clk 0:00:03]}  Rf1+ {[%clk 0:00:02]} 81. Kg3 {[%clk 0:00:03]}  Rg1+ {[%clk 0:00:03]} 82. Kh4 {[%clk 0:00:03]}  Rh1+ {[%clk 0:00:03]} 83. Kg4 {[%clk 0:00:04]}  Rg1+ {[%clk 0:00:03]} 84. Kf5 {[%clk 0:00:04]}  Rf1+ {[%clk 0:00:04]} 85. Ke6 {[%clk 0:00:05]}  Rg1 {[%clk 0:00:03]} 86. Kf5 {[%clk 0:00:05]} 1/2-1/2

[Event "November 21 Late 2023"]
[Site "https://www.chess.com"]
[Date "2023.11.21"]
[Round "5"]
[White "Rangel, Daniel"]
[Black "Sydoryka, Vladyslav"]
[Result "0-1"]
[Board "60"]
[TimeControl "180+1"]
[WhiteFideId "2124475"]
[BlackFideId "14145928"]
[WhiteElo "2267"]
[BlackElo "2271"]
[WhiteTeam "BRA"]
[BlackTeam "UKR"]
[WhiteClock "0:00:06"]
[BlackClock "0:00:36"]

1. d4 {[%clk 0:03:00]}  Nf6 {[%clk 0:02:59]} 2. c4 {[%clk 0:03:00]}  e6 {[%clk 0:03:00]} 3. Nc3 {[%clk 0:02:57]}  Bb4 {[%clk 0:03:00]} 4. e3 {[%clk 0:02:56]}  O-O {[%clk 0:03:00]} 5. Ne2 {[%clk 0:02:56]}  d5 {[%clk 0:03:00]} 6. a3 {[%clk 0:02:57]}  Bd6 {[%clk 0:02:59]} 7. Ng3 {[%clk 0:02:55]}  Re8 {[%clk 0:02:59]} 8. cxd5 {[%clk 0:02:54]}  exd5 {[%clk 0:02:59]} 9. Bd3 {[%clk 0:02:54]}  c6 {[%clk 0:02:58]} 10. O-O {[%clk 0:02:53]}  Nbd7 {[%clk 0:02:58]} 11. Nf5 {[%clk 0:02:52]}  Bc7 {[%clk 0:02:51]} 12. Bd2 {[%clk 0:02:39]}  Nf8 {[%clk 0:02:50]} 13. Qc2 {[%clk 0:02:22]}  Ne6 {[%clk 0:02:11]} 14. Rae1 {[%clk 0:02:14]}  g6 {[%clk 0:02:04]} 15. Ng3 {[%clk 0:02:14]}  Bd7 {[%clk 0:01:40]} 16. f4 {[%clk 0:02:10]}  Ng7 {[%clk 0:01:40]} 17. f5 {[%clk 0:02:09]}  Bxg3 {[%clk 0:01:39]} 18. hxg3 {[%clk 0:02:08]}  Bxf5 {[%clk 0:01:38]} 19. Bxf5 {[%clk 0:02:07]}  Nxf5 {[%clk 0:01:39]} 20. Rxf5 {[%clk 0:02:05]}  gxf5 {[%clk 0:01:40]} 21. Qxf5 {[%clk 0:02:05]}  Re6 {[%clk 0:01:32]} 22. e4 {[%clk 0:01:59]}  Nxe4 {[%clk 0:01:30]} 23. Nxe4 {[%clk 0:01:59]}  dxe4 {[%clk 0:01:29]} 24. Rxe4 {[%clk 0:01:30]}  Qd5 {[%clk 0:01:17]} 25. Qg4+ {[%clk 0:01:11]}  Rg6 {[%clk 0:01:13]} 26. Qe2 {[%clk 0:01:07]}  Rxg3 {[%clk 0:00:56]} 27. Bh6 {[%clk 0:00:51]}  Kh8 {[%clk 0:00:48]} 28. Kh2 {[%clk 0:00:24]}  Rag8 {[%clk 0:00:42]} 29. Qf1 {[%clk 0:00:06]}  Rxg2+ {[%clk 0:00:39]} 30. Kh3 {[%clk 0:00:06]}  Qh5+ {[%clk 0:00:35]} 31. Rh4 {[%clk 0:00:06]}  R8g3# {[%clk 0:00:36]} 0-1

[Event "November 21 Late 2023"]
[Site "https://www.chess.com"]
[Date "2023.11.21"]
[Round "5"]
[White "Schnaider, Ilan"]
[Black "Przybylski, Wojciech"]
[Result "1/2-1/2"]
[Board "61"]
[TimeControl "180+1"]
[WhiteFideId "169013"]
[BlackFideId "1117599"]
[WhiteElo "2373"]
[BlackElo "2203"]
[WhiteTeam "ARG"]
[BlackTeam "POL"]
[WhiteClock "0:00:04"]
[BlackClock "0:00:03"]

1. e4 {[%clk 0:02:59]}  e5 {[%clk 0:02:57]} 2. Nf3 {[%clk 0:02:59]}  Nf6 {[%clk 0:02:57]} 3. d4 {[%clk 0:03:00]}  Nxe4 {[%clk 0:02:57]} 4. Bd3 {[%clk 0:03:00]}  d5 {[%clk 0:02:57]} 5. Nxe5 {[%clk 0:03:00]}  Nd7 {[%clk 0:02:56]} 6. Nc3 {[%clk 0:02:59]}  Nxc3 {[%clk 0:02:56]} 7. bxc3 {[%clk 0:02:59]}  Nxe5 {[%clk 0:02:56]} 8. dxe5 {[%clk 0:03:00]}  Be7 {[%clk 0:02:56]} 9. O-O {[%clk 0:02:59]}  O-O {[%clk 0:02:55]} 10. f4 {[%clk 0:02:59]}  f5 {[%clk 0:02:51]} 11. Rb1 {[%clk 0:02:56]}  c5 {[%clk 0:02:34]} 12. c4 {[%clk 0:02:52]}  d4 {[%clk 0:02:33]} 13. Qf3 {[%clk 0:02:51]}  Qc7 {[%clk 0:02:26]} 14. Ba3 {[%clk 0:02:43]}  Kh8 {[%clk 0:02:22]} 15. Qd5 {[%clk 0:02:40]}  Rd8 {[%clk 0:02:16]} 16. Qf7 {[%clk 0:02:40]}  Rf8 {[%clk 0:02:16]} 17. Qh5 {[%clk 0:02:27]}  Be6 {[%clk 0:02:10]} 18. Rf3 {[%clk 0:02:25]}  g6 {[%clk 0:02:08]} 19. Qh6 {[%clk 0:02:24]}  Rf7 {[%clk 0:02:06]} 20. Rh3 {[%clk 0:02:21]}  Rg7 {[%clk 0:01:54]} 21. Be2 {[%clk 0:02:13]}  Rb8 {[%clk 0:01:49]} 22. Rhb3 {[%clk 0:02:04]}  b6 {[%clk 0:01:44]} 23. Qh3 {[%clk 0:01:55]}  Qc6 {[%clk 0:01:32]} 24. Bf3 {[%clk 0:01:43]}  Qd7 {[%clk 0:01:30]} 25. Be2 {[%clk 0:01:39]}  Rbg8 {[%clk 0:01:22]} 26. Bc1 {[%clk 0:01:35]}  g5 {[%clk 0:01:18]} 27. fxg5 {[%clk 0:01:21]}  f4 {[%clk 0:01:01]} 28. Qf3 {[%clk 0:01:14]}  Bxg5 {[%clk 0:00:35]} 29. Bf1 {[%clk 0:01:00]}  Bf5 {[%clk 0:00:27]} 30. Bd3 {[%clk 0:00:54]}  Be6 {[%clk 0:00:25]} 31. Bf1 {[%clk 0:00:53]}  Qf7 {[%clk 0:00:25]} 32. Ra3 {[%clk 0:00:51]}  Bc8 {[%clk 0:00:14]} 33. Qd5 {[%clk 0:00:39]}  Qg6 {[%clk 0:00:15]} 34. Qd6 {[%clk 0:00:35]}  Qh5 {[%clk 0:00:09]} 35. Bd2 {[%clk 0:00:35]}  f3 {[%clk 0:00:09]} 36. Bxg5 {[%clk 0:00:32]}  Rxg5 {[%clk 0:00:09]} 37. Qf6+ {[%clk 0:00:31]}  R5g7 {[%clk 0:00:08]} 38. Rxf3 {[%clk 0:00:31]}  Bb7 {[%clk 0:00:08]} 39. Rg3 {[%clk 0:00:31]}  d3 {[%clk 0:00:03]} 40. Bxd3 {[%clk 0:00:28]}  Qf7 {[%clk 0:00:03]} 41. Rf1 {[%clk 0:00:25]}  Qxf6 {[%clk 0:00:04]} 42. exf6 {[%clk 0:00:25]}  Rxg3 {[%clk 0:00:04]} 43. hxg3 {[%clk 0:00:14]}  Rf8 {[%clk 0:00:04]} 44. g4 {[%clk 0:00:12]}  h6 {[%clk 0:00:04]} 45. Kh2 {[%clk 0:00:11]}  Kg8 {[%clk 0:00:05]} 46. Bg6 {[%clk 0:00:11]}  Bc8 {[%clk 0:00:04]} 47. Kg3 {[%clk 0:00:03]}  Be6 {[%clk 0:00:04]} 48. Bd3 {[%clk 0:00:03]}  Kf7 {[%clk 0:00:04]} 49. Kh4 {[%clk 0:00:04]}  Rg8 {[%clk 0:00:04]} 50. Bf5 {[%clk 0:00:04]}  Bxc4 {[%clk 0:00:04]} 51. Re1 {[%clk 0:00:03]}  Kxf6 {[%clk 0:00:04]} 52. Rd1 {[%clk 0:00:03]}  h5 {[%clk 0:00:04]} 53. Rd6+ {[%clk 0:00:03]}  Ke5 {[%clk 0:00:04]} 54. Rh6 {[%clk 0:00:02]}  hxg4 {[%clk 0:00:05]} 55. Bxg4 {[%clk 0:00:03]}  Kf4 {[%clk 0:00:05]} 56. Bf3 {[%clk 0:00:02]}  Bf1 {[%clk 0:00:04]} 57. Rf6+ {[%clk 0:00:03]}  Ke5 {[%clk 0:00:04]} 58. Rf7 {[%clk 0:00:02]}  Bxg2 {[%clk 0:00:04]} 59. Bg4 {[%clk 0:00:02]}  Rh8+ {[%clk 0:00:04]} 60. Kg3 {[%clk 0:00:02]}  Be4 {[%clk 0:00:04]} 61. Rxa7 {[%clk 0:00:03]}  Bxc2 {[%clk 0:00:04]} 62. Rb7 {[%clk 0:00:03]}  Rh6 {[%clk 0:00:04]} 63. a3 {[%clk 0:00:03]}  Be4 {[%clk 0:00:04]} 64. Rb8 {[%clk 0:00:03]}  Kd4 {[%clk 0:00:04]} 65. Kf2 {[%clk 0:00:03]}  c4 {[%clk 0:00:04]} 66. Be2 {[%clk 0:00:03]}  Rf6+ {[%clk 0:00:03]} 67. Ke1 {[%clk 0:00:03]}  Bd5 {[%clk 0:00:03]} 68. Rd8 {[%clk 0:00:03]}  Kc5 {[%clk 0:00:03]} 69. Kd2 {[%clk 0:00:03]}  b5 {[%clk 0:00:03]} 70. Bd1 {[%clk 0:00:03]}  Rh6 {[%clk 0:00:02]} 71. Rc8+ {[%clk 0:00:03]}  Kd4 {[%clk 0:00:02]} 72. Be2 {[%clk 0:00:03]}  Rh2 {[%clk 0:00:03]} 73. Rf8 {[%clk 0:00:03]}  Be4 {[%clk 0:00:03]} 74. Rd8+ {[%clk 0:00:03]}  Kc5 {[%clk 0:00:03]} 75. Ke3 {[%clk 0:00:02]}  Bc6 {[%clk 0:00:03]} 76. Rc8 {[%clk 0:00:02]}  Rh3+ {[%clk 0:00:03]} 77. Kd2 {[%clk 0:00:02]}  Rxa3 {[%clk 0:00:03]} 78. Bg4 {[%clk 0:00:02]}  Kb6 {[%clk 0:00:03]} 79. Rb8+ {[%clk 0:00:02]}  Kc7 {[%clk 0:00:03]} 80. Rc8+ {[%clk 0:00:03]}  Kd6 {[%clk 0:00:03]} 81. Rd8+ {[%clk 0:00:04]}  Kc5 {[%clk 0:00:04]} 82. Rc8 {[%clk 0:00:04]}  Rd3+ {[%clk 0:00:04]} 83. Kc2 {[%clk 0:00:05]}  Kb6 {[%clk 0:00:04]} 84. Rb8+ {[%clk 0:00:05]}  Kc7 {[%clk 0:00:04]} 85. Rc8+ {[%clk 0:00:06]}  Kb7 {[%clk 0:00:04]} 86. Rf8 {[%clk 0:00:05]}  Rg3 {[%clk 0:00:04]} 87. Be6 {[%clk 0:00:04]}  Kb6 {[%clk 0:00:04]} 88. Rb8+ {[%clk 0:00:04]}  Kc5 {[%clk 0:00:04]} 89. Rc8 {[%clk 0:00:04]}  Kd6 {[%clk 0:00:03]} 90. Bf5 {[%clk 0:00:05]}  Re3 {[%clk 0:00:02]} 91. Rd8+ {[%clk 0:00:05]}  Kc5 {[%clk 0:00:03]} 92. Rc8 {[%clk 0:00:05]}  Re7 {[%clk 0:00:02]} 93. Bg4 {[%clk 0:00:05]}  Rf7 {[%clk 0:00:01]} 94. Bh3 {[%clk 0:00:05]}  Rg7 {[%clk 0:00:01]} 95. Bf5 {[%clk 0:00:04]}  Kb6 {[%clk 0:00:01]} 96. Rb8+ {[%clk 0:00:04]}  Kc7 {[%clk 0:00:01]} 97. Rc8+ {[%clk 0:00:05]}  Kb7 {[%clk 0:00:02]} 98. Kc3 {[%clk 0:00:04]}  Rg5 {[%clk 0:00:01]} 99. Be6 {[%clk 0:00:03]}  Re5 {[%clk 0:00:01]} 100. Bg4 {[%clk 0:00:03]}  Re4 {[%clk 0:00:01]} 101. Bf5 {[%clk 0:00:04]}  Re3+ {[%clk 0:00:01]} 102. Kb4 {[%clk 0:00:03]}  Re7 {[%clk 0:00:01]} 103. Bg4 {[%clk 0:00:02]}  Kb6 {[%clk 0:00:01]} 104. Rb8+ {[%clk 0:00:02]}  Bb7 {[%clk 0:00:02]} 105. Rd8 {[%clk 0:00:02]}  Rg7 {[%clk 0:00:02]} 106. Bf5 {[%clk 0:00:01]}  Rc7 {[%clk 0:00:02]} 107. Rd6+ {[%clk 0:00:01]}  Rc6 {[%clk 0:00:02]} 108. Rd8 {[%clk 0:00:02]}  c3 {[%clk 0:00:02]} 109. Bc2 {[%clk 0:00:03]}  Rc4+ {[%clk 0:00:02]} 110. Kb3 {[%clk 0:00:03]}  Bc6 {[%clk 0:00:03]} 111. Rd6 {[%clk 0:00:04]}  Kc5 {[%clk 0:00:03]} 112. Rh6 {[%clk 0:00:04]}  Bd5 {[%clk 0:00:03]} 113. Rh5 {[%clk 0:00:05]}  b4 {[%clk 0:00:03]} 114. Ka4 {[%clk 0:00:05]}  Rd4 {[%clk 0:00:03]} 115. Bb3 {[%clk 0:00:04]}  Rd2 {[%clk 0:00:04]} 116. Rg5 {[%clk 0:00:04]}  Rd3 {[%clk 0:00:02]} 117. Rh5 {[%clk 0:00:04]}  Rd2 {[%clk 0:00:03]} 118. Rg5 {[%clk 0:00:04]}  Kc6 {[%clk 0:00:03]} 119. Rg6+ {[%clk 0:00:04]}  Kc5 {[%clk 0:00:03]} 120. Rg5 {[%clk 0:00:04]} 1/2-1/2

[Event "November 21 Late 2023"]
[Site "https://www.chess.com"]
[Date "2023.11.21"]
[Round "5"]
[White "Musalov, Ruslan"]
[Black "Gubajdullin, Alexei"]
[Result "1/2-1/2"]
[Board "62"]
[TimeControl "180+1"]
[WhiteFideId "4141490"]
[BlackFideId "4141202"]
[WhiteElo "2268"]
[BlackElo "2280"]
[WhiteTeam "RUS"]
[BlackTeam "RUS"]
[WhiteClock "0:00:32"]
[BlackClock "0:00:43"]

1. e4 {[%clk 0:02:56]}  g6 {[%clk 0:02:59]} 2. Nf3 {[%clk 0:02:56]}  Bg7 {[%clk 0:02:59]} 3. d4 {[%clk 0:02:56]}  d6 {[%clk 0:02:59]} 4. Nc3 {[%clk 0:02:55]}  a6 {[%clk 0:02:59]} 5. a4 {[%clk 0:02:54]}  Nf6 {[%clk 0:02:58]} 6. h3 {[%clk 0:02:54]}  O-O {[%clk 0:02:58]} 7. Be3 {[%clk 0:02:53]}  e6 {[%clk 0:02:58]} 8. Qd2 {[%clk 0:02:52]}  Re8 {[%clk 0:02:58]} 9. Be2 {[%clk 0:02:48]}  b6 {[%clk 0:02:57]} 10. O-O {[%clk 0:02:47]}  Bb7 {[%clk 0:02:57]} 11. e5 {[%clk 0:02:48]}  Nd5 {[%clk 0:02:50]} 12. Nxd5 {[%clk 0:02:45]}  Bxd5 {[%clk 0:02:49]} 13. c4 {[%clk 0:02:42]}  Bb7 {[%clk 0:02:48]} 14. Rfd1 {[%clk 0:02:35]}  Nc6 {[%clk 0:02:45]} 15. Bf4 {[%clk 0:02:18]}  dxe5 {[%clk 0:02:33]} 16. dxe5 {[%clk 0:02:10]}  Qxd2 {[%clk 0:02:29]} 17. Rxd2 {[%clk 0:02:11]}  Rad8 {[%clk 0:02:27]} 18. Rad1 {[%clk 0:02:11]}  Rxd2 {[%clk 0:02:27]} 19. Rxd2 {[%clk 0:02:12]}  Rd8 {[%clk 0:02:27]} 20. Rxd8+ {[%clk 0:02:08]}  Nxd8 {[%clk 0:02:27]} 21. Nd4 {[%clk 0:02:05]}  Nc6 {[%clk 0:02:09]} 22. Nxc6 {[%clk 0:02:01]}  Bxc6 {[%clk 0:02:09]} 23. b3 {[%clk 0:02:01]}  Be4 {[%clk 0:02:05]} 24. Bd1 {[%clk 0:01:50]}  Bf8 {[%clk 0:02:03]} 25. Be3 {[%clk 0:01:49]}  h6 {[%clk 0:01:58]} 26. f3 {[%clk 0:01:48]}  Bd3 {[%clk 0:01:54]} 27. Kf2 {[%clk 0:01:48]}  g5 {[%clk 0:01:51]} 28. Bd4 {[%clk 0:01:48]}  a5 {[%clk 0:01:47]} 29. Ke3 {[%clk 0:01:47]}  Bb1 {[%clk 0:01:42]} 30. Kd2 {[%clk 0:01:43]}  h5 {[%clk 0:01:30]} 31. g4 {[%clk 0:01:41]}  Bb4+ {[%clk 0:01:14]} 32. Bc3 {[%clk 0:01:39]}  Bc5 {[%clk 0:00:58]} 33. Bc2 {[%clk 0:01:34]}  Bxc2 {[%clk 0:00:56]} 34. Kxc2 {[%clk 0:01:35]}  Kh7 {[%clk 0:00:55]} 35. Kd3 {[%clk 0:01:34]}  Kg6 {[%clk 0:00:54]} 36. Bd4 {[%clk 0:01:33]}  Bb4 {[%clk 0:00:53]} 37. Bc3 {[%clk 0:01:33]}  c5 {[%clk 0:00:52]} 38. Bxb4 {[%clk 0:01:18]}  axb4 {[%clk 0:00:51]} 39. Ke4 {[%clk 0:01:16]}  hxg4 {[%clk 0:00:50]} 40. hxg4 {[%clk 0:01:16]}  Kg7 {[%clk 0:00:50]} 41. Ke3 {[%clk 0:01:15]}  Kg6 {[%clk 0:00:50]} 42. Ke4 {[%clk 0:01:13]}  Kg7 {[%clk 0:00:50]} 43. Kd3 {[%clk 0:01:06]}  Kg6 {[%clk 0:00:49]} 44. Ke3 {[%clk 0:01:06]}  Kg7 {[%clk 0:00:49]} 45. Ke4 {[%clk 0:01:04]}  Kh7 {[%clk 0:00:48]} 46. Ke3 {[%clk 0:01:04]}  Kh8 {[%clk 0:00:47]} 47. Ke4 {[%clk 0:01:04]}  Kg8 {[%clk 0:00:47]} 48. Ke3 {[%clk 0:01:03]}  Kf8 {[%clk 0:00:47]} 49. Ke4 {[%clk 0:01:03]}  Ke7 {[%clk 0:00:47]} 50. f4 {[%clk 0:00:47]}  Kf8 {[%clk 0:00:46]} 51. fxg5 {[%clk 0:00:35]}  Kg7 {[%clk 0:00:44]} 52. Kf3 {[%clk 0:00:35]}  Kh7 {[%clk 0:00:44]} 53. Kg3 {[%clk 0:00:35]}  Kg7 {[%clk 0:00:44]} 54. Kh3 {[%clk 0:00:35]}  Kh7 {[%clk 0:00:44]} 55. Kg3 {[%clk 0:00:35]}  Kg7 {[%clk 0:00:44]} 56. Kf3 {[%clk 0:00:34]}  Kh8 {[%clk 0:00:44]} 57. g6 {[%clk 0:00:31]}  fxg6 {[%clk 0:00:43]} 58. Kf4 {[%clk 0:00:31]}  Kh7 {[%clk 0:00:43]} 59. Kg5 {[%clk 0:00:30]}  Kg7 {[%clk 0:00:42]} 60. Kh4 {[%clk 0:00:30]}  Kh6 {[%clk 0:00:42]} 61. g5+ {[%clk 0:00:30]}  Kg7 {[%clk 0:00:42]} 62. Kg4 {[%clk 0:00:31]}  Kf7 {[%clk 0:00:42]} 63. Kf4 {[%clk 0:00:31]}  Kg7 {[%clk 0:00:42]} 64. Ke4 {[%clk 0:00:31]}  Kf7 {[%clk 0:00:42]} 65. Kf4 {[%clk 0:00:32]}  Kg7 {[%clk 0:00:43]} 66. Ke4 {[%clk 0:00:32]}  Kf7 {[%clk 0:00:43]} 67. Kf4 {[%clk 0:00:32]} 1/2-1/2

[Event "November 21 Late 2023"]
[Site "https://www.chess.com"]
[Date "2023.11.21"]
[Round "5"]
[White "Joie, Sebastien"]
[Black "OPQRC"]
[Result "0-1"]
[Board "64"]
[TimeControl "180+1"]
[WhiteFideId "650420"]
[WhiteElo "2396"]
[BlackElo "2632"]
[WhiteTeam "FRA"]
[WhiteClock "0:00:03"]
[BlackClock "0:00:20"]

1. d4 {[%clk 0:03:00]}  Nf6 {[%clk 0:02:58]} 2. c4 {[%clk 0:03:01]}  e6 {[%clk 0:02:58]} 3. Nc3 {[%clk 0:03:01]}  d5 {[%clk 0:02:58]} 4. Nf3 {[%clk 0:03:01]}  c6 {[%clk 0:02:56]} 5. e3 {[%clk 0:03:01]}  Be7 {[%clk 0:02:56]} 6. Bd3 {[%clk 0:03:01]}  dxc4 {[%clk 0:02:55]} 7. Bxc4 {[%clk 0:03:01]}  b5 {[%clk 0:02:55]} 8. Bd3 {[%clk 0:03:01]}  Bb7 {[%clk 0:02:55]} 9. O-O {[%clk 0:03:01]}  O-O {[%clk 0:02:55]} 10. e4 {[%clk 0:02:57]}  Nbd7 {[%clk 0:02:49]} 11. e5 {[%clk 0:02:42]}  Nd5 {[%clk 0:02:49]} 12. Nxd5 {[%clk 0:02:41]}  exd5 {[%clk 0:02:44]} 13. Be3 {[%clk 0:02:08]}  Re8 {[%clk 0:02:30]} 14. Rc1 {[%clk 0:01:52]}  Rc8 {[%clk 0:02:29]} 15. Bb1 {[%clk 0:01:47]}  Nf8 {[%clk 0:02:26]} 16. Qd3 {[%clk 0:01:34]}  a5 {[%clk 0:02:09]} 17. Nd2 {[%clk 0:01:17]}  g6 {[%clk 0:01:51]} 18. g4 {[%clk 0:00:47]}  c5 {[%clk 0:01:24]} 19. dxc5 {[%clk 0:00:41]}  Ne6 {[%clk 0:01:23]} 20. Qxb5 {[%clk 0:00:32]}  d4 {[%clk 0:01:23]} 21. Qxb7 {[%clk 0:00:22]}  dxe3 {[%clk 0:01:23]} 22. Ne4 {[%clk 0:00:22]}  Nxc5 {[%clk 0:01:17]} 23. Nxc5 {[%clk 0:00:12]}  Bxc5 {[%clk 0:01:08]} 24. Rfd1 {[%clk 0:00:07]}  Qh4 {[%clk 0:00:56]} 25. Qg2 {[%clk 0:00:02]}  Rxe5 {[%clk 0:00:40]} 26. Kh1 {[%clk 0:00:02]}  e2 {[%clk 0:00:37]} 27. Re1 {[%clk 0:00:02]}  Rce8 {[%clk 0:00:31]} 28. Bd3 {[%clk 0:00:02]}  Bxf2 {[%clk 0:00:29]} 29. Rxe2 {[%clk 0:00:01]}  Rxe2 {[%clk 0:00:29]} 30. Bxe2 {[%clk 0:00:01]}  Rxe2 {[%clk 0:00:29]} 31. Qf3 {[%clk 0:00:02]}  Re8 {[%clk 0:00:23]} 32. Qc6 {[%clk 0:00:01]}  Rf8 {[%clk 0:00:21]} 33. Qf3 {[%clk 0:00:02]}  Bd4 {[%clk 0:00:21]} 34. Rf1 {[%clk 0:00:02]}  Bxb2 {[%clk 0:00:20]} 35. Qd5 {[%clk 0:00:03]}  Bg7 {[%clk 0:00:21]} 36. Qxa5 {[%clk 0:00:02]}  Qxg4 {[%clk 0:00:21]} 37. Qb5 {[%clk 0:00:02]}  Qe4+ {[%clk 0:00:21]} 38. Kg1 {[%clk 0:00:02]}  Bd4+ {[%clk 0:00:21]} 39. Rf2 {[%clk 0:00:03]}  Bxf2+ {[%clk 0:00:21]} 40. Kxf2 {[%clk 0:00:04]}  Rc8 {[%clk 0:00:20]} 41. Qa6 {[%clk 0:00:04]}  Rc2+ {[%clk 0:00:20]} 42. Kg3 {[%clk 0:00:05]}  Rc3+ {[%clk 0:00:20]} 43. Kf2 {[%clk 0:00:04]}  Qe3+ {[%clk 0:00:20]} 44. Kg2 {[%clk 0:00:04]}  Qf3+ {[%clk 0:00:20]} 45. Kg1 {[%clk 0:00:03]}  Rc1+ {[%clk 0:00:20]} 0-1